Workbook

Sheet MSS
B1: Riku Vasarainen | E1: 27.2.1991 Lahti
B2: YKKÖSPESIS | E2: Runkosarja | L2: Runkosarja TOP-10 | Q2: Jatkosarjat | X2: SUOMENSARJA | AA2: Runkosarja | AH2: Runkosarja TOP-10 | AM2: Jatkosarjat
B3: Vuosi | C3: Sija | D3: Seura | E3: OTT | F3: KUN | G3: LÖI | H3: TOI | I3: KL | J3: KL-% | L3: LÖI | M3: TOI | N3: L+T | O3: KL | Q3: OTT | R3: KUN | S3: LÖI | T3: TOI | U3: KL | V3: KL-% | X3: Vuosi | Y3: Sija | Z3: Seura | AA3: OTT | AB3: KUN | AC3: LÖI | AD3: TOI | AE3: KL | AF3: KL-% | AH3: LÖI | AI3: TOI | AJ3: L+T | AK3: KL | AM3: OTT | AN3: KUN | AO3: LÖI | AP3: TOI | AQ3: KL | AR3: KL-%
X4: 2008 | Y4: 5. | Z4: LMV | AA4: 1 | AB4: 0 | AC4: 0 | AD4: 0 | AE4: 1 | AF4: 100.0 % | AG4: 1
X5: 2009 | Y5: 4. | Z5: LMV | AA5: 4 | AB5: 0 | AC5: 1 | AD5: 1 | AE5: 7 | AF5: 77.8 % | AG5: 9 | AM5: 1 | AN5: 0 | AO5: 0 | AP5: 0 | AQ5: 0 | AR5: 0.0 % | AS5: 0
X7: 2011 | Y7: 3. | Z7: LMV | AA7: 1 | AB7: 0 | AC7: 0 | AD7: 1 | AE7: 2 | AF7: 50.0 % | AG7: 4
X8: 2012 | Y8: 4. | Z8: LMV | AA8: 7 | AB8: 0 | AC8: 1 | AD8: 8 | AE8: 16 | AF8: 61.5 % | AG8: 26
X9: 2013 | Y9: 6. | Z9: LMV | AA9: 11 | AB9: 0 | AC9: 0 | AD9: 5 | AE9: 18 | AF9: 52.9 % | AG9: 34
X10: 2014 | Y10: 3. | Z10: LMV | AA10: 7 | AB10: 1 | AC10: 2 | AD10: 5 | AE10: 11 | AF10: 64.7 % | AG10: 17
X11: 2015 | Y11: 7. | Z11: LMV | AA11: 10 | AB11: 1 | AC11: 1 | AD11: 7 | AE11: 28 | AF11: 70.0 % | AG11: 40
X12: 2016 | Y12: 6. | Z12: LMV | AA12: 15 | AB12: 0 | AC12: 1 | AD12: 36 | AE12: 80 | AF12: 77.7 % | AG12: 103 | AI12: 1. | AK12: 9.
X13: 2017 | Y13: 2. | Z13: LMV | AA13: 16 | AB13: 1 | AC13: 2 | AD13: 37 | AE13: 83 | AF13: 73.5 % | AG13: 113 | AI13: 4. | AM13: 5 | AN13: 0 | AO13: 0 | AP13: 8 | AQ13: 22 | AR13: 57.9 % | AS13: 38
X14: 2018 | Y14: 1. | Z14: LMV | AA14: 12 | AB14: 0 | AC14: 0 | AD14: 12 | AE14: 35 | AF14: 70.0 % | AG14: =PRODUCT(AE14/AF14) -> 50 | AM14: 7 | AN14: 0 | AO14: 0 | AP14: 4 | AQ14: 18 | AR14: 56.3 % | AS14: =PRODUCT(AQ14/AR14) -> 32
X15: 2019 | Y15: 2. | Z15: LMV | AA15: 12 | AB15: 0 | AC15: 1 | AD15: 20 | AE15: 43 | AF15: 68.3 % | AG15: 63 | AM15: 3 | AN15: 0 | AO15: 0 | AP15: 3 | AQ15: 5 | AR15: 38.5 % | AS15: 13
X16: 2020 | Y16: 2. | Z16: LMV | AA16: 5 | AB16: 0 | AC16: 0 | AD16: 5 | AE16: 13 | AF16: 65.0 % | AG16: 20
X17: 2021 | Y17: 4. | Z17: LMV | AA17: 12 | AB17: 0 | AC17: 6 | AD17: 12 | AE17: 42 | AF17: 63.6 % | AG17: 66 | AM17: 2 | AN17: 0 | AO17: 0 | AP17: 1 | AQ17: 5 | AR17: 45.5 % | AS17: 11
X18: 2022 | Y18: 6. | Z18: LMV | AA18: 7 | AB18: 0 | AC18: 0 | AD18: 11 | AE18: 33 | AF18: 78.6 % | AG18: 42
B19: YHTEENSÄ | E19: =SUM(E4:E18) -> 0 | F19: =SUM(F4:F18) -> 0 | G19: =SUM(G4:G18) -> 0 | H19: =SUM(H4:H18) -> 0 | I19: =SUM(I4:I18) -> 0 | J19: 0.0 % | K19: =SUM(K4:K18) -> 0 | Q19: =SUM(Q4:Q18) -> 0 | R19: =SUM(R4:R18) -> 0 | S19: =SUM(S4:S18) -> 0 | T19: =SUM(T4:T18) -> 0 | U19: =SUM(U4:U18) -> 0 | V19: 0.0 % | W19: =SUM(W4:W18) -> 0 | X19: YHTEENSÄ | AA19: =SUM(AA4:AA18) -> 120 | AB19: =SUM(AB4:AB18) -> 3 | AC19: =SUM(AC4:AC18) -> 15 | AD19: =SUM(AD4:AD18) -> 160 | AE19: =SUM(AE4:AE18) -> 412 | AF19: =PRODUCT(AE19/AG19) -> 70.1 % | AG19: =SUM(AG4:AG18) -> 588 | AM19: =SUM(AM4:AM18) -> 18 | AN19: =SUM(AN4:AN18) -> 0 | AO19: =SUM(AO4:AO18) -> 0 | AP19: =SUM(AP4:AP18) -> 16 | AQ19: =SUM(AQ4:AQ18) -> 50 | AR19: =PRODUCT(AQ19/AS19) -> 53.2 % | AS19: =SUM(AS4:AS18) -> 94
B21: KAIKKI OTTELUT | E21: OTT | F21: KUN | G21: LÖI | H21: TOI | I21: KL | J21: KL-% | L21: ka/L | M21: ka/T | N21: ka/l+t | O21: ka/kl | R21: Seurat | T21: LMV = Lahden Mailaveikot (1929), kasvattajaseura
B22: SUPERPESIS | E22: 0 | F22: 0 | G22: 0 | H22: 0 | I22: 0 | J22: 0.0 % | K22: 0 | L22: 0.00 | M22: 0.00 | N22: 0.00 | O22: 0.00
B23: YKKÖSPESIS | E23: =PRODUCT(E19+Q19) -> 0 | F23: =PRODUCT(F19+R19) -> 0 | G23: =PRODUCT(G19+S19) -> 0 | H23: =PRODUCT(H19+T19) -> 0 | I23: =PRODUCT(I19+U19) -> 0 | J23: 0.0 % | K23: 0 | L23: 0.00 | M23: 0.00 | N23: 0.00 | O23: 0.00
B24: SUOMENSARJA | E24: =PRODUCT(AA19+AM19) -> 138 | F24: =PRODUCT(AB19+AN19) -> 3 | G24: =PRODUCT(AC19+AO19) -> 15 | H24: =PRODUCT(AD19+AP19) -> 176 | I24: =PRODUCT(AE19+AQ19) -> 462 | J24: =PRODUCT(I24/K24) -> 67.7 % | K24: =PRODUCT(AG19+AS19) -> 682 | L24: =PRODUCT((F24+G24)/E24) -> 0.13 | M24: =PRODUCT(H24/E24) -> 1.28 | N24: =PRODUCT((F24+G24+H24)/E24) -> 1.41 | O24: =PRODUCT(I24/E24) -> 3.35
B25: YHTEENSÄ | E25: =SUM(E22:E24) -> 138 | F25: =SUM(F22:F24) -> 3 | G25: 15 | H25: 176 | I25: 462 | J25: =PRODUCT(I25/K25) -> 67.7 % | K25: =SUM(K22:K24) -> 682 | L25: =PRODUCT((F25+G25)/E25) -> 0.13 | M25: =PRODUCT(H25/E25) -> 1.28 | N25: =PRODUCT((F25+G25+H25)/E25) -> 1.41 | O25: =PRODUCT(I25/E25) -> 3.35
